Cogmind - Beta 15 @@@ ROGUE MODE // 2025.05.07 @ 21:23:37 Player: GiggleBox Result: Destroyed by D-53 Grenadier with Mini Grenade Launcher Performance ------------- Evolutions (0) 0 Regions Visited (4) 800 Robots Destroyed (30) 150 Value Destroyed (733) 733 Prototype IDs (37) 740 Alien Tech Used (0) 0 Bonus (300) 300 TOTAL SCORE: 2723 Bonus ------- Aligned with FarCom 300 Cogmind --------- Core Integrity 0/250 Matter 230/300 Energy 116/250 System Corruption 0% Temperature Cool (6) Movement Treading (320) Ox2 Location -9/Mines Parts ------- > --- POWER (1) -------- Ion Engine > --- PROPULSION (2) --- Light Treads > --- UTILITY (2) ------ High-capacity Storage Unit > --- WEAPON (2) ------- Improved Light Cannon Improved Light Cannon > --- INVENTORY (20) --- Light Treads Light Treads Light Treads Light Treads High-capacity Matter Pod (200) Improved Terrain Scanner Seismic Detector Tractor Beam Heavy Assault Rifle Heavy Assault Rifle Heavy Assault Rifle Improved Light Cannon Improved Light Cannon AWS/Autocannon Rocket Launcher Datajack Peak State ------------ > --- POWER ------------ Ion Engine > --- PROPULSION ------- Light Treads Light Treads > --- UTILITY ---------- Improved Heat Sink High-capacity Storage Unit > --- WEAPON ----------- Improved Light Cannon Improved Light Cannon > --- INVENTORY -------- Ion Engine Light Treads Light Treads Light Treads Light Treads Light Treads High-capacity Matter Pod Improved Terrain Scanner Seismic Detector Tractor Beam Heavy Assault Rifle Heavy Assault Rifle Heavy Assault Rifle Improved Light Cannon Improved Light Cannon AWS/Autocannon Rocket Launcher Datajack [Rating: 16] Favorites ----------- Power Ion Engine Engine Ion Engine Propulsion Light Treads Treads Light Treads Utility High-capacity Storage Unit Device Seismic Detector Storage High-capacity Storage Unit Protection Light Armor Plating Weapon Heavy Assault Rifle Ballistic Gun Heavy Assault Rifle Ballistic Cannon Improved Light Cannon Special Weapon Mining Laser Special Melee Weapon Datajack Build | -11 -10 -10 -10 -9 ------- Run | Yrd Mat Min Exi Min Slots Evolved . | . . . . . Power . | . . . . . Propulsion . | . . . . . Utility . | . . . . . Weapon . | . . . . . Parts Attached 29 | 8 11 4 1 5 Power 4 | 1 1 1 . 1 Engine 4 | 1 1 1 . 1 Core . | . . . . . Reactor . | . . . . . Propulsion 6 | 2 2 1 . 1 Treads 6 | 2 2 1 . 1 Leg . | . . . . . Wheel . | . . . . . Hover . | . . . . . Flight . | . . . . . Utility 8 | 3 2 2 . 1 Device 3 | 1 . 1 . 1 Storage 4 | 2 2 . . . Processor . | . . . . . Hackware . | . . . . . Protection 1 | . . 1 . . Artifact . | . . . . . Weapon 11 | 2 6 . 1 2 Energy Gun . | . . . . . Energy Cannon . | . . . . . Ballistic Gun 5 | 2 3 . . . Ballistic Cannon 4 | . 2 . . 2 Launcher . | . . . . . Special Weapon 1 | . 1 . . . Impact Weapon . | . . . . . Slashing Weapon . | . . . . . Piercing Weapon . | . . . . . Special Melee Weapon 1 | . . . 1 . Unidentified Prototypes . | . . . . . Parts Lost 4 | . . . . 4 Power 1 | . . . . 1 Propulsion 2 | . . . . 2 Utility 1 | . . . . 1 Weapon . | . . . . . Highest Loss Streak 4 | . . . . 4 To Critical Strikes . | . . . . . Average Backups 17 | 2 16 19 18 17 Power 1 | . 1 1 1 1 Propulsion 3 | . 2 5 5 4 Utility 4 | 1 4 5 4 4 Weapon 6 | . 6 7 7 7 Tool/Special . | . . . . . Unused Backups 12 | . 3 . 1 8 Power 1 | . 1 . . . Propulsion 4 | . 1 . . 3 Utility 4 | . 1 . 1 2 Weapon 3 | . . . . 3 Tool/Special . | . . . . . Average Slot Usage (%) 100 | . 100 100 100 100 Engine 14 | . 14 14 14 14 Treads 28 | . 28 28 28 28 Device 11 | . 14 6 14 14 Storage 14 | . 14 14 14 14 Protection 2 | . . 7 . . Ballistic Gun 24 | . 26 28 15 1 Special Melee Weapon 2 | . . . 12 1 Peak Build Rating 16 | 7 12 12 13 16 Average Rating 11 | 5 11 11 12 15 On Entrance 8 | . 7 12 12 13 Naked Turns . | . . . . . Heaviest Build 54 | 13 53 54 52 54 Greatest Support 40 | 40 40 40 40 40 Greatest Overweight (x) 1 | . 1 1 1 1 Average Overweight (x) . | . . 1 1 1 Largest Inventory Capacity 20 | 8 20 20 20 20 Average Capacity 18 | 7 17 20 20 20 Most Carried 20 | 5 20 20 20 20 Average Carried 17 | 2 16 19 19 19 Final Capacity 20 | 8 20 20 20 20 Final Carried 20 | 4 20 20 20 18 Class Distribution -------------------- 100% | Mutant Dominant Class ---------------- Mutant | -10/Materials Mutant | -10/Mines Mutant | -10/Exiles Mutant | -9/Mines Resources | -11 -10 -10 -10 -9 ----------- Run | Yrd Mat Min Exi Min Matter Collected 1109 | 298 242 569 . . Remotely 127 | . . 127 . . Salvage Created 1061 | 139 383 526 . 13 Parts 77 | 18 29 29 . 1 Haulers Intercepted 2 | . 2 . . . Recyclers Shooed 1 | . . 1 . . Parts Field Recycled . | . . . . . Retrieved Matter . | . . . . . Parts Self-Destructed . | . . . . . Prevented . | . . . . . Kills | -11 -10 -10 -10 -9 ------- Run | Yrd Mat Min Exi Min Combat Hostiles Destroyed 21 | . 6 14 . 1 Guns 20 | . 6 14 . . Cannons 1 | . . . . 1 Classes Destroyed 8 | 2 4 1 . 1 Tunneler 3 | 3 . . . . Hauler 2 | . 2 . . . Recycler 2 | 1 . 1 . . Operator 1 | . 1 . . . Watcher 1 | . 1 . . . Swarmer 6 | . . 6 . . Grunt 14 | . 6 8 . . Demolisher 1 | . . . . 1 Best Kill Streak 3 | 3 3 3 . 1 Combat Bots Only 3 | . 3 3 . 1 Max Kills in Single Turn 2 | 2 2 1 . 1 Gunslinging 1 | . 1 . . . Exploded . | . . . . . Melee . | . . . . . Uniques/NPCs Destroyed . | . . . . . Combat | -11 -10 -10 -10 -9 -------- Run | Yrd Mat Min Exi Min Hostile Shots Fired 78 | . 15 48 . 15 Missed 21 | . 7 14 . . Hits 57 | . 8 34 . 15 Melee 3 | . . . . 3 Projectile 54 | . 8 34 . 12 AOE 12 | . . . . 12 Critical Strikes 1 | . . 1 . . Part Disruptions 2 | . . . . 2 Damage Taken 1178 | . 102 418 . 658 Core 274 | . 43 78 . 153 Absorbed by Shields . | . . . . . Core Remaining (%) 100 | 100 . . . . Volleys Fired 70 | 3 30 34 . 3 Largest 2 | 2 2 2 . 2 Hottest 123 | 40 123 46 . 66 Shots Fired 133 | 6 54 68 . 5 Gun 121 | 6 47 68 . . Cannon 7 | . 2 . . 5 Launcher . | . . . . . Special 5 | . 5 . . . Kinetic 128 | 6 49 68 . 5 Thermal 5 | . 5 . . . Explosive . | . . . . . Electromagnetic . | . . . . . Robot Hit Streak 9 | 3 9 6 . 5 Robot Miss Streak 3 | 1 2 3 . . Penetration Max . | . . . . . Secondary Targets 5 | . 3 2 . . Max Gunslinging Chain 1 | . 1 1 . . Shots Hit Robots 76 | 4 25 41 4 2 Core Hits 46 | 5 15 24 . 2 Critical Kills . | . . . . . Critical Parts Destroyed 1 | . 1 . . . Critical Strikes 1 | . 1 . . . Destroy 1 | . 1 . . . Melee Attacks 4 | . . . 4 . Impact . | . . . . . Slashing . | . . . . . Piercing . | . . . . . Sneak Attacks 4 | . . . 4 . Combat Hostiles . | . . . . . Follow-up Attacks . | . . . . . Damage Inflicted 1112 | 61 371 639 . 41 Guns 1067 | 61 369 637 . . Cannons 41 | . . . . 41 Explosions . | . . . . . Melee . | . . . . . Ramming 4 | . 2 2 . . Kinetic 1108 | 61 369 637 . 41 Thermal . | . . . . . Explosive . | . . . . . Electromagnetic . | . . . . . Impact . | . . . . . Slashing . | . . . . . Piercing . | . . . . . Highest Corruption . | . . . . . Average Corruption . | . . . . . Corruption Purged . | . . . . . Corruption Blocked . | . . . . . Overload Shots . | . . . . . Overflow Damage . | . . . . . Projectiles . | . . . . . Explosions . | . . . . . Melee . | . . . . . Knockbacks 1 | . . . . 1 Impact . | . . . . . Kinetic 1 | . . . . 1 Secondary . | . . . . . Self-Inflicted Damage . | . . . . . Shots . | . . . . . Rammed 3 | . 2 1 . . Targets Rammed 3 | . 2 1 . . Kicked . | . . . . . Crushed . | . . . . . Highest Temperature 60 | . 60 36 . 6 Average Temperature 16 | . 17 17 . 4 Received Heat Transfer 298 | . 57 201 . 40 Siege Activations . | . . . . . Martial Activations . | . . . . . Shielding Activations . | . . . . . Robots Disrupted . | . . . . . Combat Hostiles . | . . . . . Robots Corrupted . | . . . . . Combat Hostiles . | . . . . . Parts Fried . | . . . . . Impact Corruptions . | . . . . . Robots Melted . | . . . . . Combat Hostiles . | . . . . . Parts Melted . | . . . . . Heat Transferred . | . . . . . Parts Sabotaged . | . . . . . Parts Stolen . | . . . . . Parts Stripped . | . . . . . Power Chain Reactions . | . . . . . Alert | -11 -10 -10 -10 -9 ------- Run | Yrd Mat Min Exi Min Maximum Alert Level . | . . . . . Low Security (%) 100 | 100 100 100 . 100 Level 1 . | . . . . . Level 2 . | . . . . . Level 3 . | . . . . . Level 4 . | . . . . . Level 5 . | . . . . . High Security . | . . . . . Max Security . | . . . . . Peak Influence 142 | 15 60 142 . 30 Initial . | . . . . . Average 23 | 2 10 38 . 1 Influence Increases 608 | 20 213 345 . 30 Destroy 0b10 Robot/C 420 | . 120 280 . 20 Destroy 0b10 Robot/NC 45 | 20 20 5 . . Destroy Leader 106 | . 36 60 . 10 Successful Hack 17 | . 17 . . . Disable Machine 15 | . 15 . . . Destroy Structure 5 | . 5 . . . Influence Decreases 578 | 20 213 345 . . Time Decay 578 | 20 213 345 . . Squads Dispatched 3 | . 3 . . . Investigation 2 | . 2 . . . Extermination . | . . . . . Reinforcement 1 | . 1 . . . Assault . | . . . . . Garrison . | . . . . . Intercept . | . . . . . Searches Triggered . | . . . . . Construction Impeded . | . . . . . Haulers Reinforced . | . . . . . Active Scanning Responses . | . . . . . Cargo Convoy Interrupts . | . . . . . Stealth | -11 -10 -10 -10 -9 --------- Run | Yrd Mat Min Exi Min Distress Signals 1 | . . 1 . . Communications Jammed . | . . . . . Distress Signals . | . . . . . Times Spotted 27 | . 8 14 . 5 Peak Tracking Total 3 | . 3 3 . 3 Tactical Retreats . | . . . . . Traps | -11 -10 -10 -10 -9 ------- Run | Yrd Mat Min Exi Min Traps Triggered 2 | . 2 . . . Indirectly . | . . . . . Trap Hack Attempts . | . . . . . Triggered . | . . . . . Disarmed . | . . . . . Reprogrammed . | . . . . . Reused . | . . . . . Traps Extracted . | . . . . . Installed . | . . . . . Triggered . | . . . . . Machines | -11 -10 -10 -10 -9 ---------- Run | Yrd Mat Min Exi Min Machines Disabled 1 | . 1 . . . Max in Single Turn 1 | . 1 . . . Machines Repaired . | . . . . . Machines Dismantled . | . . . . . Machines Sabotaged . | . . . . . Overloaded Fab Kills . | . . . . . Hacking | -11 -10 -10 -10 -9 --------- Run | Yrd Mat Min Exi Min Machines Accessed 8 | . 6 . 2 . Terminals 6 | . 6 . . . Fabricators . | . . . . . Repair Stations . | . . . . . Recycling Units . | . . . . . Scanalyzers . | . . . . . Garrison Access . | . . . . . Total Hacks 21 | . 19 . 2 . Successful 14 | . 12 . 2 . Failed 7 | . 7 . . . Catastrophic 1 | . 1 . . . Database Lockouts . | . . . . . Manual 18 | . 17 . 1 . Terminals 19 | . 19 . . . Fabricators . | . . . . . Repair Stations . | . . . . . Recycling Units . | . . . . . Scanalyzers . | . . . . . Garrison Access . | . . . . . Terminal Hacks 8 | . 6 . 2 . Record 2 | . 1 . 1 . Robot Analysis 3 | . 3 . . . Branch Access Points 1 | . 1 . . . Locate Traps 1 | . 1 . . . Proto ID Catalog 1 | . . . 1 . Fabricator Hacks . | . . . . . Repair Station Hacks . | . . . . . Recycling Unit Hacks . | . . . . . Scanalyzer . | . . . . . Garrison Access Hacks . | . . . . . Unauthorized Hacks 6 | . 6 . . . Terminals 6 | . 6 . . . Botnet 1 | . 1 . . . Skim 5 | . 5 . . . Fabricators . | . . . . . Repair Stations . | . . . . . Recycling Units . | . . . . . Scanalyzers . | . . . . . Garrison Access . | . . . . . Data Cores Recovered 1 | . 1 . . . Used . | . . . . . Hacking Detections 4 | . 4 . . . Full Trace Events . | . . . . . Feedback Events . | . . . . . Feedback Blocked . | . . . . . Robot Schematics Acquired . | . . . . . Robots Built . | . . . . . Authchips . | . . . . . Time . | . . . . . Total Robot Build Rating . | . . . . . Part Schematics Acquired . | . . . . . Parts Built . | . . . . . Authchips . | . . . . . Time . | . . . . . Total Part Build Rating . | . . . . . Parts Repaired . | . . . . . Time . | . . . . . Parts Recycled . | . . . . . Recycled Matter . | . . . . . Retrieved Matter . | . . . . . Retrieved Components . | . . . . . Parts Scanalyzed . | . . . . . Part Schematics Acquired . | . . . . . Parts Damaged . | . . . . . Bothacking | -11 -10 -10 -10 -9 ------------ Run | Yrd Mat Min Exi Min Used RIF Installer . | . . . . . Robots Hacked 4 | . . . 4 . Non-combat 3 | . . . 3 . Combat 1 | . . . 1 . Robot Hacks Applied 4 | . . . 4 . parse_system 4 | . . . 4 . Relay Couplers Released . | . . . . . Fabnet Peak Effective % . | . . . . . Robots Rewired . | . . . . . Allies Hacked . | . . . . . Hacks Repelled . | . . . . . Allies | -11 -10 -10 -10 -9 -------- Run | Yrd Mat Min Exi Min Total Allies . | . . . . . Largest Group . | . . . . . Highest-Rated Group . | . . . . . Highest-Rated Ally . | . . . . . Total Orders . | . . . . . Ally Attacks . | . . . . . Total Damage . | . . . . . Kills . | . . . . . Allies Corrupted . | . . . . . Allies Melted . | . . . . . Intel | -11 -10 -10 -10 -9 ------- Run | Yrd Mat Min Exi Min Active Infowar (turns) 2897 | 50 1489 708 644 6 Seismic 2897 | 50 1489 708 644 6 Robot Analysis Total 3 | . 3 . . . Derelict Logs Recovered 2 | . . 2 . . Drone Launches . | . . . . . Drone Recoveries . | . . . . . Exploration | -11 -10 -10 -10 -9 ------------- Run | Yrd Mat Min Exi Min Turns Passed 3866 | 144 1489 1516 644 73 Spaces Moved 1492 | 77 572 555 265 23 Core 4 | 4 . . . . Treads 1488 | 73 572 555 265 23 Legs . | . . . . . Wheels . | . . . . . Hover . | . . . . . Flight . | . . . . . Fastest Speed 50 | 50 160 240 240 240 Average Speed 221 | 154 202 240 240 240 Slowest Speed 240 | 160 240 240 240 240 Overloaded Moves . | . . . . . Propulsion Burnouts . | . . . . . Robots Hopped . | . . . . . Potential Cave-ins . | . . . . . Cave-ins Triggered . | . . . . . Exploration Rate (%) 55 | 4 99 93 69 12 Regions Visited 4 Branch Regions 3 Pre-discovered Areas 1 | . . . 1 . Known Exits Taken 1 | . 1 . . . Unknown Exits Taken 3 | 1 . 1 1 . Scrap Searched 1 | . . 1 . . Spaces Dug 5 | . 5 . . . Terrain Destroyed 5 | . 5 . . . Melee . | . . . . . Projectile 5 | . 5 . . . AOE . | . . . . . Terrain Rammed . | . . . . . Walls Destroyed . | . . . . . Machines Disabled . | . . . . . Actions | -11 -10 -10 -10 -9 --------- Run | Yrd Mat Min Exi Min Total 1904 | 93 837 667 273 34 Wait 254 | . 190 61 . 3 Move 1488 | 76 571 554 264 23 Hop . | . . . . . Pick Up 26 | 4 19 2 1 . Fast Attach 8 | 8 . . . . Attach 3 | . . 1 . 2 Detach 1 | 1 . . . . Swap 31 | . 16 11 1 3 Drop 16 | 1 9 3 3 . Fire 70 | 3 30 34 . 3 Melee 4 | . . . 4 . Ram . | . . . . . Kick . | . . . . . Crush 3 | . 2 1 . . Escape Stasis . | . . . . . Rewire . | . . . . . Trap . | . . . . . Miscellaneous . | . . . . . Route ------- -11/Scrapyard -10/Materials (discovered 6 exits: *Mat x3 / *Min x2 / Sub) -10/Mines (discovered 3 exits: *Mat x2 / *Exi) -10/Exiles (discovered 2 exits: [*Min x2]) -9/Mines History --------- Turn | Location | Event 2 | -11/Scrapyard | Discovered new exit (range 16) 145 | -11/Scrapyard | Entered Materials 146 | -10/Materials | Met a group of wandering Federalists 312 | -10/Materials | Build established: Mutant 494 | -10/Materials | Discovered new exit (range 14) 548 | -10/Materials | Discovered new exit (range 14) 792 | -10/Materials | Discovered new exit (range 12) 977 | -10/Materials | Discovered new exit (range 16) 1081 | -10/Materials | Identified exit to Mines 1400 | -10/Materials | Identified exit to Materials 1436 | -10/Materials | Learned location of 2 exits from Subcaves 1463 | -10/Materials | Learned location of 1 exit from Recycling 1481 | -10/Materials | Identified exit to Subcaves 1489 | -10/Materials | Learned 8 Materials zone layouts 1490 | -10/Materials | Learned location of 2 exits from Materials 1544 | -10/Materials | Learned 2 Materials zone layouts 1634 | -10/Materials | Entered Mines 1771 | -10/Mines | Learned Materials emergency access door positions 1773 | -10/Mines | Found DCF Scrap (11 items) 1969 | -10/Mines | Learned 2 Materials zone layouts 2224 | -10/Mines | Received a Rocket Launcher from a helpful Derelict 3138 | -10/Mines | Deemed a non-threat by the Exiles lab entrance 3140 | -10/Mines | Discovered new exit (range 5) 3150 | -10/Mines | Entered Exiles 3182 | -10/Exiles | Discovered new exit (range 15) 3210 | -10/Exiles | Met 8R-AWN 3259 | -10/Exiles | Met EX-HEX 3340 | -10/Exiles | Met EX-BIN 3372 | -10/Exiles | Aligned with FarCom system 3375 | -10/Exiles | Given EX-Vault access code 3430 | -10/Exiles | Opened EX-Vault 3451 | -10/Exiles | Found AWS/Autocannon 3497 | -10/Exiles | Warned to stay clear of 0b10 Research branches 3634 | -10/Exiles | Met EX-DEC 3703 | -10/Exiles | Learned location of Zion (-7) 3775 | -10/Exiles | Discovered new exit (range 10) 3794 | -10/Exiles | Left Exiles lab with AWS/Autocannon 3794 | -10/Exiles | Entered Mines 3834 | -9/Mines | Assembled infested the area 3858 | -9/Mines | Core integrity fell below 50% 3861 | -9/Mines | Core integrity fell below 20% 3867 | -9/Mines | Destroyed by D-53 Grenadier with Mini Grenade Launcher Last Messages --------------- 03775_ EXIT=FOUND LOCATION=UNKNOWN GOAL=ESCAPE 03794_ Receiving FarCom transmissions... 03834_ ALERT: Infestation in the mines, dispatching Demolisher response squad. 03855_ C-30 ARC bursts open, deploying its payload. 03855_ D-53 Grenadier unfolds itself. 03855_ as-13290 destroyed. 03855_ as-46386 destroyed. 03857_ as-67632 destroyed. 03858_ Lgt. Treads destroyed. 03861_ The unstable cave ceiling collapses. 03861_ Ion Engine destroyed. 03861_ D-53 Grenadier knocked back. 03862_ Imp. Heat Sink destroyed. 03863_ The unstable cave ceiling collapses. 03864_ Lgt. Treads destroyed. 03864_ D-53 Grenadier destroyed. 03865_ The unstable cave ceiling collapses. Map ----- +----------------------------------------------------+ | ???????????????????????????????????? | | ???????????????????????????????????? | | ???????????????????????????????????? | | ???????????????????????????????????? | | ???????????????????????????????????? | | ???????????????????????????????????? | | ???????????????????????????????????? | | ???????????????????????????????????? | | ???????????????????????????????????? | | ???????????????????????????????????? | | ???????????????????????????????????? | | ???????????????????????????????????? | | ???????????????????????????????????? | | ???????????????????????????????????? | | ???????????????????????????????????? | | ???????????????????????????????????? | | ???????????????????????????????????? | | ??????????####?????????????????????? | | ??????????a #?????????????????????? | | ?????????? #?????????????????????? | | ????????### ##????????????????????? | | ???????## ##???????????????????? | | ??????## ##??????????????????? | | ??????# #??????????????????? | | ??????# #??????????????????? | | ??????# @ #??????????????????? | | ??????# #??????????????????? | | ??????# #??????????????????? | | ??????## #????####??????????? | | ???????## ##??## ##?????????? | | ????????## d# ##### ##????????? | | ?????????##%%#### #????????? | | ?????????##! ## #????????? | | ????????## % #????????? | | ????????# #?????????? | | ????????# #??????????? | | ????????# ##??????????? | | ???????## ## ##???????????? | | ??????## ## ## ##????????????? | | ??????# ### ## #?????????????? | | ?????# ##?# ## #?????????????? | | ????# ##??# #?????????????? | | ????# #????#### #?????????????? | | ????# ????????# ?????????????? | | ???# ????????# ?????????????? | | ??# ????????####?????????????? | | ?# ## ?????????????????????????? | | ?# #?## ??????????????????????????? | | ?# ???##??????????????????????????? | | ?# ????????????????????????????????? | +----------------------------------------------------+ Best States ------------- Heat Dissipation 39 Energy Generation 10 Energy Capacity 250 Matter Stores 300 Matter Capacity 300 Sight Range 16 Terrain Scan Density 10 Armor Coverage 150 Evasion (%) 40 Recoil Reduction 2 Item Schematics ----------------- None Robot Schematics ------------------ None Fabricated ------------ Nothing Repaired ---------- Nothing Alien Tech Used ----------------- None Achievements -------------- None Challenges ------------ None Game ------ Seed RainbowMultinovaSuperbattery Manual? 0 Play Time 00:26:09 Cumulative 73.3 hours Start 2025.05.07 @ 20:58:20 End 2025.05.07 @ 21:23:37 Sessions 1 Manual Loads 0 Difficulty Rogue Special Mode None Game No. 82 Rogue 82 Adventurer 0 Explorer 0 Win Type - Total 1 Types 1/0/0/0/0/0/0/0/0/0 Lore% 22 Gallery% 43 Achievement% 37 Wizard Run 0 Options --------- Layout 0 ASCII 0 Keyboard 1 Movement Numpad Keybinds 0 Fullscreen 1 Font 24/Terminus Map View 76x50 Zoom Use 0% Tactical HUD 1 Map Filters NONE Filters NONE Steam 1 RUN: a36a9ebd-f94b-42cf-894b-49e1b8b9a240